Workbook

Sheet Fonctionnement - A LIRE
G2: Classification 5 quilles Ligue Hauts de France
H3: Règles de fonctionnement
A4: Objectif :
A5: En début de saison 2008-2009, j'avais annoncé la réforme de la classification 5 quilles dans la ligue NPDC pour distinguer les catégories N1 et R1.
A6: Les objectifs de cette réforme étaient, et restent toujours, de limiter les différences trop importantes de niveaux par catégories, d'encourager la compétition et de favoriser la progression..
A8: Limiter les écarts de niveaux :
A9: La distinction des catégories N1 et R1 empêche les joueurs N1 de disputer les épreuves R1, donc elle permet de laisser aux joueurs de niveau plus modeste de disputer leur chance dans leur catégorie.
A10: Encourager la compétition :
A11: Conséquence logique de la première mesure, cet objectif sera également atteint en fixant un nombre minimum de matchs disputés pour permettre l'évaluation des joueurs
A12: ainsi qu'en valorisant le titre de champion de ligue R1 par la montée en N1.
A13: Favoriser la progression :
A14: Comme dans les autres modes de jeu, un joueur peut prétendre jouer dans la catégorie supérieure, dans ce cas, à lui de confirmer son niveau en se maintenant dans la catégorie supérieure.
A16: Fonctionnement de la classification :
A17: Evaluation glissante sur 2 saisons des résultats individuels obtenus par les joueurs dans leur catégorie. Tous les matchs individuels officiels sont pris en compte.
A18: Nombre minimum de matchs effectués pour évaluation : 10 matchs dans une même catégorie sur les 2 dernières saisons.
A19: Si un joueur n'a pas effectué 10 matchs sur les 2 dernières saisons, l'évaluation de ses résultats n'est pas faite et sa classification reste inchangée pour l'année suivante.
A20: Si un joueur ne joue pas pendant une ou plusieurs saisons, il reprend dans la catégorie qui était la sienne à son arrêt.
A21: Seuls les résultats de son année de reprise sont pris en compte.(saison précédente 0 matchs + nb matchs effectués l'année de reprise)
A23: Critères de descente en catégorie R1 :
A24: Pourcentage de matchs gagnés < 33% et pourcentage de sets gagnés < 33% (tous les matchs sont pris en compte)
A26: Critères de montée en catégorie N1
A27: Se situer dans au moins un des 3 cas ci-dessous :
A28: - Champion de ligue ou vice-champion de ligue de la saison en cours.
A29: - Pourcentage de matchs gagnés > 64,99% et de sets gagnés > 59,99% (tous les matchs individuels sont pris en compte)
A30: - Avoir confirmé en N1, c'est-à-dire avoir disputé au moins 10 matchs individuels en N1 sur les 2 dernières saisons et avoir un nombre de matchs gagnés > 32,99% ou un nombre de sets gagnés > 32,99%
A32: Nouveau joueur :
A33: Si joueur classé N2 ou mieux à la bande ou au 3 bandes ==> Classification de départ en 5 quilles N1 obligatoire.
A36: Jean-charles Wallart
A37: Responsable format 5 quilles Ligue Hauts de France
A38: jcwallart@fr.ibm.com

Sheet Classification
A1: Nom | B1: Prénom | C1: Licence | D1: Club | E1: Nom & Prénom | F1: CD | G1: Saison 2008 2009 | H1: Evol. | I1: Saison 2009 2010 | J1: Evol. | K1: Saison 2010 2011 | L1: Evol. | M1: Saison 2011 2012 | N1: Evol. | O1: Saison 2012 2013 | P1: Evol. | Q1: Saison 2013 2014 | R1: Evol. | S1: Saison 2014 2015 | T1: Evol. | U1: Saison 2015 2016 | V1: Evol. | W1: Saison 2016 2017 | X1: Evol. | Y1: Saison 2017 2018 | Z1: Evol. | AA1: Saison 2018 2019 | AB1: Evol. | AC1: Saison 2019 2020 | AD1: Evol. | AE1: Saison 2020 2021 | AF1: Dernier classement connu
A2: ALAZARD | B2: Philippe | C2: 012406E | D2: CREPY EN VALOIS | E2: =A2 & " " & B2 -> ALAZARD Philippe | F2: CD60 | AA2: R1 | AB2: = | AC2: R1 | AD2: ▲ | AE2: N1 | AF2: 1er Qualifications CD60 R1 2019-2020
A3: ALDEGUER | B3: Lionel | C3: 148619S | D3: GRANDE SYNTHE | E3: ALDEGUER Lionel | F3: CD59 | Q3: R1 | R3: ▲ | S3: N1 | T3: = | U3: N1 | V3: ▼ | W3: R1 | X3: ▲ | Y3: N1 | Z3: = | AA3: N1 | AB3: = | AC3: N1 | AD3: = | AE3: N1 | AF3: 12ème qualifications CD59 N1 2018-2019 - 82ème classement ranking national 2019-2020
A4: ALEXANDRE | B4: Michel | C4: 120146A | D4: SENLIS | E4: ALEXANDRE Michel | F4: CD60 | W4: N1 | X4: = | Y4: N1 | Z4: = | AA4: N1 np | AB4: = | AC4: N1 np | AD4: = | AE4: N1 | AF4: 45ème Classement National 2017 - 2018
A5: AZRIA | B5: Aaron | C5: 164108D | D5: SENLIS | E5: AZRIA Aaron | F5: CD60 | AA5: R1 | AB5: = | AC5: R1 np | AD5: = | AE5: R1 | AF5: 3ème Finale CD60 Juniors 2018 - 2019
A6: BABOLEIN | B6: Clément | C6: 168868C | D6: LA FERRE | E6: BABOLEIN Clément | F6: CD02 | AC6: R1 | AD6: = | AE6: R1 | AF6: 5ème Qualifications CD02 R1 2019-2020
A7: BAHEUX | B7: David | C7: 107661V | D7: OUTREAU | E7: BAHEUX David | F7: CD62 | G7: N1 np | H7: = | I7: N1 np | J7: = | K7: N1 np | L7: = | M7: N1 np | N7: = | O7: N1 np | P7: = | Q7: N1 np | R7: = | S7: N1 np | T7: = | U7: N1 np | V7: = | W7: N1 np | X7: = | Y7: N1 np | Z7: = | AA7: N1 np | AB7: = | AC7: N1 np | AD7: = | AE7: N1 | AF7: 3ème 1/2 Finale district maritime N1 2007-2008 ou antérieur
A8: BARBE | B8: Philippe | C8: 137526M | D8: SENLIS | E8: BARBE Philippe | F8: CD60 | W8: N1 | X8: = | Y8: N1 | Z8: = | AA8: N1 | AB8: = | AC8: N1 | AD8: ▼ | AE8: R1 | AF8: 6ème Qualifications CD60 2019-2020 - 71ème classement ranking national
A9: BARNO | B9: Cassandre | C9: 143081D | D9: DENAIN | E9: BARNO Cassandre | F9: CD59 | M9: R1 | N9: = | O9: R1 | P9: = | Q9: R1 np | R9: = | S9: R1 np | T9: = | U9: R1 np | V9: = | W9: R1 np | X9: = | Y9: R1 np | Z9: = | AA9: R2 np | AB9: = | AC9: R1 np | AD9: = | AE9: R1 | AF9: 5ème Finale Ligue R1 2012-2013
A10: BARTHON | B10: Aurélie | C10: 162822F | D10: SENLIS | E10: BARTHON Aurélie | F10: CD60 | Y10: R1 | Z10: = | AA10: R1 np | AB10: = | AC10: R1 | AD10: = | AE10: R1 | AF10: 13ème Qualifications CD60 R1 2019-2020
A11: BASTENIER | B11: Jean | C11: 017360S | D11: RONCHIN | E11: BASTENIER Jean | F11: CD59 | G11: R1 | H11: ▲ | I11: N1 | J11: = | K11: N1 | L11: = | M11: N1 np | N11: = | O11: N1 np | P11: = | Q11: N1 np | R11: = | S11: N1 np | T11: = | U11: N1 np | V11: = | W11: N1 np | X11: = | Y11: N1 np | Z11: = | AA11: N1 np | AB11: = | AC11: N1 np | AD11: = | AE11: N1 | AF11: 30ème qualifications ligue N1 2010-2011
A12: BATTEUX | B12: Daniel | C12: 021005X | D12: PONT DE METZ | E12: BATTEUX Daniel | F12: CD80 | W12: N1 | X12: = | Y12: N1 | Z12: = | AA12: N1 | AB12: = | AC12: N1 np | AD12: = | AE12: N1 | AF12: 9ème Qualifications CD80 N1 2018-2019
A13: BAUER | B13: Henri | C13: 112088C | D13: FRIVILLE | E13: BAUER Henri | F13: CD80 | AA13: R1 | AB13: = | AC13: R1 np | AD13: = | AE13: R1 | AF13: NC 5Q - R1 Bande ==> R1 5Q
A14: BEGHIN | B14: Benjamin | C14: 145779X | D14: ANNOEULLIN | E14: BEGHIN Benjamin | F14: CD59 | W14: R1 | X14: = | Y14: R1 | Z14: = | AA14: R2 np | AB14: = | AC14: R1 np | AD14: = | AE14: R1 | AF14: 10ème Qualifications CD59 R1 2017 - 2018
A15: BEGHIN | B15: Nicolas | C15: 148048X | D15: ANNOEULLIN | E15: BEGHIN Nicolas | F15: CD59 | W15: R1 | X15: = | Y15: R1 | Z15: = | AA15: R1 | AB15: = | AC15: R1 | AD15: = | AE15: R1 | AF15: 15ème Qualifications CD59 R1 2019-2020
A16: BEGUIN | B16: Jean-Luc | C16: 163765F | D16: ST POL SUR MER | E16: BEGUIN Jean-Luc | F16: CD59 | AA16: R2 | AB16: = | AC16: R1 | AD16: = | AE16: R1 | AF16: 13ème Qualifications CD59 R1 2019-2020
A17: BELLOC | B17: Adrien | C17: 154255T | D17: GRANDE SYNTHE | E17: BELLOC Adrien | F17: CD59 | S17: R1 | T17: = | U17: R1 np | V17: = | W17: R1 np | X17: = | Y17: R1 np | Z17: = | AA17: R2 np | AB17: = | AC17: R1 np | AD17: = | AE17: R1 | AF17: 14ème qualifications CD59 R1 2014-2015
A18: BETTEFORT | B18: Clémence | C18: 153071G | D18: FRIVILLE | E18: BETTEFORT Clémence | F18: CD80 | Y18: R1 | Z18: = | AA18: R1 | AB18: = | AC18: R1 np | AD18: = | AE18: R1 | AF18: 18ème Qualifications CD80 R1 2018-2019
A19: BETTEFORT | B19: Mickaël | C19: 137459X | D19: FRIVILLE | E19: BETTEFORT Mickaël | F19: CD80 | W19: R1 | X19: = | Y19: R1 | Z19: = | AA19: R1 | AB19: = | AC19: R1 np | AD19: = | AE19: R1 | AF19: 11ème Qualifications CD80 R1 2018-2019
A20: BETTEFORT | B20: Véronique | C20: 165660Q | D20: FRIVILLE | E20: BETTEFORT Véronique | F20: CD80 | AA20: R1 | AB20: = | AC20: R1 np | AD20: = | AE20: R1 | AF20: 21ème Qualifications CD80 R1 2018-2019
A21: BLONDEEL | B21: Bruno | C21: 131428Y | D21: OUTREAU | E21: BLONDEEL Bruno | F21: CD62 | M21: R1 | N21: = | O21: R1 | P21: = | Q21: R1 np | R21: = | S21: R1 | T21: = | U21: R1 | V21: = | W21: R1 | X21: ▲ | Y21: N1 np | Z21: = | AA21: N1 np | AB21: = | AC21: N1 np | AD21: = | AE21: N1 | AF21: 2ème Qualifications Maritime CD62 2016 2017
A22: BLONDEEL | B22: Firmin | C22: 133104K | D22: OUTREAU | E22: BLONDEEL Firmin | F22: CD62 | K22: R1 | L22: = | M22: R1 | N22: = | O22: R1 | P22: ▲ | Q22: N1 np | R22: = | S22: N1 | T22: = | U22: N1 | V22: = | W22: N1 np | X22: = | Y22: N1 np | Z22: = | AA22: N1 | AB22: = | AC22: N1 | AD22: = | AE22: N1 | AF22: 1er Qualifications CD62 N1 2019-2020
A23: BLOUIN | B23: Nicolas | C23: 147753B | D23: CHAMBLY | E23: BLOUIN Nicolas | F23: CD60 | Y23: R1 | Z23: = | AA23: R1 np | AB23: = | AC23: R1 np | AD23: = | AE23: R1 | AF23: 3ème Finale CD60 Juniors 2017 - 2018
A24: BOCQUET | B24: Jean-Luc | C24: 016577P | D24: BILLY MONTIGNY | E24: BOCQUET Jean-Luc | F24: CD62 | G24: N1 np | H24: = | I24: N1 np | J24: = | K24: N1 np | L24: = | M24: N1 np | N24: = | O24: N1 np | P24: = | Q24: N1 np | R24: = | S24: N1 np | T24: = | U24: N1 np | V24: = | W24: N1 np | X24: = | Y24: N1 np | Z24: = | AA24: N1 np | AB24: = | AC24: N1 np | AD24: = | AE24: N1 | AF24: 8ème Tournoi N1 Artois 2007-2008 ou antérieur
A25: BOLLINNE | B25: Simon | C25: 150356F | D25: GUIGNICOURT | E25: BOLLINNE Simon | F25: CD02 | Y25: R1 | Z25: = | AA25: R1 np | AB25: = | AC25: R1 np | AD25: = | AE25: R1 | AF25: 5ème finale CD02 R1 2017 - 2018
A26: BONNEAU | B26: Benoît | C26: 112124M | D26: CREPY EN VALOIS | E26: BONNEAU Benoît | F26: CD60 | W26: N1 | X26: = | Y26: N1 | Z26: = | AA26: N1 | AB26: = | AC26: N1 | AD26: = | AE26: N1 | AF26: 4ème Qualifications CD60 2019-2020 - 105ème classement ranking national 2019-2020
A27: BOUBET | B27: Jean | C27: 121412S | D27: CUCQ | E27: BOUBET Jean | F27: CD62 | G27: R1 | H27: = | I27: R1 | J27: = | K27: R1 np | L27: = | M27: R1 np | N27: = | O27: R1 | P27: = | Q27: R1 | R27: = | S27: R1 np | T27: = | U27: R1 np | V27: = | W27: R1 | X27: ▲ | Y27: N1 | Z27: = | AA27: N1 np | AB27: = | AC27: N1 np | AD27: = | AE27: N1 | AF27: 4ème Qualifications CD62 N1 2017 - 2018
A28: BOUCHART | B28: Christophe | C28: 016693B | D28: GRANDE SYNTHE | E28: BOUCHART Christophe | F28: CD59 | M28: R1 | N28: = | O28: R1 np | P28: = | Q28: R1 np | R28: = | S28: R1 np | T28: = | U28: R1 np | V28: = | W28: R1 np | X28: = | Y28: R1 np | Z28: = | AA28: R2 np | AB28: = | AC28: R1 np | AD28: = | AE28: R1 | AF28: 9ème Qualifications CD59 R1 2011-2012
A29: BOUIGES | B29: Armelle | C29: 145645T | D29: SENLIS | E29: BOUIGES Armelle | F29: CD60 | W29: R1 | X29: = | Y29: R1 | Z29: = | AA29: R1 | AB29: = | AC29: R1 | AD29: = | AE29: R1 | AF29: 14ème Qualifications CD60 R1 2019-2020
A30: BOUILLET | B30: Antoine | C30: 105367P | D30: VILLENEUVE D'ASCQ | E30: BOUILLET Antoine | F30: CD59 | G30: N1 np | H30: = | I30: N1 np | J30: = | K30: N1 np | L30: = | M30: N1 np | N30: = | O30: N1 np | P30: = | Q30: N1 np | R30: = | S30: N1 np | T30: = | U30: N1 np | V30: = | W30: N1 np | X30: = | Y30: N1 np | Z30: = | AA30: N1 np | AB30: = | AC30: N1 np | AD30: = | AE30: N1 | AF30: 4ème Finale district Flandre N1 2007-2008 ou antérieur
A31: BOULET | B31: Serge | C31: 130198Q | D31: FACHES-THUMESNIL | E31: BOULET Serge | F31: CD59 | G31: R1 | H31: = | I31: R1 np | J31: = | K31: R1 np | L31: = | M31: R1 np | N31: = | O31: R1 np | P31: = | Q31: R1 np | R31: = | S31: R1 np | T31: = | U31: R1 np | V31: = | W31: R1 np | X31: = | Y31: R1 np | Z31: = | AA31: R2 np | AB31: = | AC31: R1 np | AD31: = | AE31: R1 | AF31: 12ème Qualifications CD59 R1 2008-2009
A32: BOULINGUEZ | B32: Yves | C32: 134472A | D32: LA FERRE | E32: BOULINGUEZ Yves | F32: CD02 | W32: R1 | X32: = | Y32: R1 | Z32: = | AA32: R1 | AB32: = | AC32: R1 | AD32: = | AE32: R1 | AF32: 4ème Qualifications CD02 R1 2019-2020
A33: BOURGOGNE | B33: Claude | C33: 020831F | D33: GOUVIEUX | E33: BOURGOGNE Claude | F33: CD60 | W33: N1 | X33: = | Y33: N1 | Z33: = | AA33: N1 | AB33: ▼ | AC33: R1 | AD33: ▲ | AE33: N1 | AF33: 2ème Qualifications CD60 R1 2019-2020
A34: BOUTEILLER | B34: Francis | C34: 102464Y | D34: MERU | E34: BOUTEILLER Francis | F34: CD60 | Y34: N1 | Z34: = | AA34: N1 np | AB34: = | AC34: N1 np | AD34: = | AE34: N1 | AF34: 11ème Qualifications CD60 2017 - 2018
A35: BOZON | B35: Robert | C35: 165891R | D35: CREPY EN VALOIS | E35: BOZON Robert | F35: CD60 | AA35: R1 | AB35: = | AC35: R1 | AD35: = | AE35: R1 | AF35: 12ème Qualifications CD60 R1 2019-2020
A36: BROUTIER | B36: Bertrand | C36: 101241X | D36: CUCQ | E36: BROUTIER Bertrand | F36: CD62 | AA36: R1 | AB36: = | AC36: R1 np | AD36: = | AE36: R1 | AF36: 11ème Qualifications CD62 N1 2018 - 2019
A37: BRUYERE | B37: Michel | C37: 114150K | D37: VILLENEUVE D'ASCQ | E37: BRUYERE Michel | F37: CD59 | G37: R1 | H37: = | I37: R1 np | J37: = | K37: R1 np | L37: = | M37: R1 np | N37: = | O37: R1 np | P37: = | Q37: R1 np | R37: = | S37: R1 np | T37: = | U37: R1 np | V37: = | W37: R1 np | X37: = | Y37: R1 np | Z37: = | AA37: R2 np | AB37: = | AC37: R1 np | AD37: = | AE37: R1 | AF37: 10ème Qualifications CD59 R1 2008-2009
A38: BUONDELMONTE | B38: Nazario | C38: 017134A | D38: DENAIN | E38: BUONDELMONTE Nazario | F38: CD59 | K38: R1 | L38: = | M38: R1 np | N38: = | O38: R1 np | P38: = | Q38: R1 np | R38: = | S38: R1 np | T38: = | U38: R1 np | V38: = | W38: R1 np | X38: = | Y38: R1 np | Z38: = | AA38: R2 np | AB38: = | AC38: R1 np | AD38: = | AE38: R1 | AF38: 10ème Qualifications CD59 R1 2010-2011
A39: BURY | B39: Alain | C39: 016732O | D39: CAMBRAI | E39: BURY Alain | F39: CD59 | M39: N1 | N39: = | O39: N1 np | P39: = | Q39: N1 np | R39: = | S39: N1 np | T39: = | U39: N1 np | V39: = | W39: N1 np | X39: = | Y39: N1 np | Z39: = | AA39: N1 np | AB39: = | AC39: N1 np | AD39: = | AE39: N1 | AF39: 42ème T3 National 2011-2012
A40: BUTTI | B40: Bertrand | C40: 155687A | D40: SAINT QUENTIN | E40: BUTTI Bertrand | F40: CD02 | W40: R1 | X40: = | Y40: R1 | Z40: = | AA40: R1 | AB40: = | AC40: R1 | AD40: ▲ | AE40: N1 | AF40: 2ème Qualifications CD02 R1 2019-2020
A41: BUTTI | B41: EmIlie | C41: 157680R | D41: SAINT QUENTIN | E41: BUTTI EmIlie | F41: CD02 | W41: R1 | X41: = | Y41: R1 np | Z41: = | AA41: R1 np | AB41: = | AC41: R1 np | AD41: = | AE41: R1 | AF41: 4ème Finale CD02 R1 2016 - 2017
A42: CABOCHE | B42: Marcel | C42: 017273J | D42: BILLY MONTIGNY | E42: CABOCHE Marcel | F42: CD62 | G42: N1 np | H42: = | I42: N1 np | J42: = | K42: N1 np | L42: = | M42: N1 np | N42: = | O42: N1 np | P42: = | Q42: N1 np | R42: = | S42: N1 np | T42: = | U42: N1 np | V42: = | W42: N1 np | X42: = | Y42: N1 np | Z42: = | AA42: N1 np | AB42: = | AC42: N1 np | AD42: = | AE42: N1 | AF42: 3ème Tournoi N1 Artois 2007-2008 ou antérieur
A43: CABUZEL | B43: Denis | C43: 021206Q | D43: PONT DE METZ | E43: CABUZEL Denis | F43: CD80 | W43: R1 | X43: ▲ | Y43: N1 | Z43: ▼ | AA43: R1 | AB43: = | AC43: R1 np | AD43: = | AE43: R1 | AF43: 8ème Qualifications CD80 R1 2018-2019
A44: CAPLIEZ | B44: Bernard | C44: 143595X | D44: CUCQ | E44: CAPLIEZ Bernard | F44: CD62 | Q44: R1 | R44: = | S44: R1 | T44: = | U44: R1 | V44: = | W44: R1 np | X44: = | Y44: R1 | Z44: ▲ | AA44: N1 | AB44: = | AC44: N1 | AD44: = | AE44: N1 | AF44: 11ème Qualifications CD62 N1 2019-2020
A45: CARPENTIER | B45: Yohanne | C45: 016914O | D45: ANNOEULLIN | E45: CARPENTIER Yohanne | F45: CD59 | G45: R1 | H45: ▲ | I45: N1 | J45: = | K45: N1 | L45: = | M45: N1 | N45: = | O45: N1 np | P45: = | Q45: N1 np | R45: = | S45: N1 np | T45: = | U45: N1 np | V45: = | W45: N1 np | X45: = | Y45: N1 np | Z45: = | AA45: N1 np | AB45: = | AC45: N1 np | AD45: = | AE45: N1 | AF45: 37ème qualifications ligue N1 2013-2014
A46: CARRU | B46: Bruno | C46: 016650K | D46: DUNKERQUE | E46: CARRU Bruno | F46: CD59 | G46: R1 np | H46: = | I46: R1 | J46: = | K46: R1 np | L46: = | M46: R1 np | N46: = | O46: R1 np | P46: = | Q46: R1 np | R46: = | S46: R1 np | T46: = | U46: R1 np | V46: = | W46: R1 np | X46: = | Y46: R1 np | Z46: = | AA46: R2 np | AB46: = | AC46: R1 np | AD46: = | AE46: R1 | AF46: 17ème Qualifications CD59 R1 2009-2010
A47: CARTIERE | B47: André | C47: 117749V | D47: CUCQ | E47: CARTIERE André | F47: CD62 | G47: R1 | H47: = | I47: R1 | J47: = | K47: R1 np | L47: = | M47: R1 | N47: = | O47: R1 | P47: = | Q47: R1 | R47: = | S47: R1 | T47: = | U47: R1 | V47: = | W47: R1 | X47: = | Y47: R1 | Z47: = | AA47: R1 | AB47: = | AC47: R1 | AD47: ▲ | AE47: N1 | AF47: 4ème Qualifications CD62 R1 2019-2020
A48: CASTRIGNANO | B48: Antonio | C48: 020660Q | D48: GOUVIEUX | E48: CASTRIGNANO Antonio | F48: CD60 | AD48: = | AF48: Pas d'info
A49: CASARES | B49: Jacques | C49: 016867T | D49: CARVIN | E49: CASARES Jacques | F49: CD62 | G49: N1 np | H49: = | I49: N1 np | J49: = | K49: N1 np | L49: = | M49: N1 np | N49: = | O49: N1 np | P49: = | Q49: N1 np | R49: = | S49: N1 np | T49: = | U49: N1 np | V49: = | W49: N1 np | X49: = | Y49: N1 np | Z49: = | AA49: N1 np | AB49: = | AC49: N1 np | AD49: = | AE49: N1 | AF49: 2ème Tournoi N1 Artois 2007-2008 ou antérieur
A50: CASIER | B50: Philippe | C50: 134564Q | D50: SAINT QUENTIN | E50: CASIER Philippe | F50: CD02 | AC50: R1 | AD50: = | AE50: R1 | AF50: 6ème Qualifications CD02 R1 2019-2020
A51: CAUX | B51: Grégory | C51: 147265W | D51: ANNOEULLIN | E51: CAUX Grégory | F51: CD59 | O51: N1 | P51: = | Q51: N1 | R51: = | S51: N1 | T51: = | U51: N1 np | V51: = | W51: N1 np | X51: = | Y51: N1 np | Z51: = | AA51: N1 np | AB51: = | AC51: N1 np | AD51: = | AE51: N1 | AF51: 11ème qualifications ligue 2014-2015
A52: CAUX | B52: Patrick | C52: 129454A | D52: FRIVILLE | E52: CAUX Patrick | F52: CD80 | Y52: R1 | Z52: = | AA52: R1 | AB52: = | AC52: R1 np | AD52: = | AE52: R1 | AF52: NC - Classé N3 Bande et 3B
A53: CHAIGNE | B53: Gilles | C53: 165846S | D53: PONT DE METZ | E53: CHAIGNE Gilles | F53: CD80 | AA53: R1 | AB53: = | AC53: R1 np | AD53: = | AE53: R1 | AF53: 5ème Finale Ligue R1 2018-2019
A54: CHARLES | B54: Dominique | C54: 135646E | D54: CREPY EN VALOIS | E54: CHARLES Dominique | F54: CD60 | W54: N1 | X54: = | Y54: N1 | Z54: = | AA54: N1 | AB54: = | AC54: N1 | AD54: ▼ | AE54: R1 | AF54: 9ème Qualifications CD60 2019-2020 - 101ème classement ranking national 2019-2020
A55: CHENAL | B55: Gérard | C55: 142320W | D55: CHAMBLY | E55: CHENAL Gérard | F55: CD60 | W55: R1 | X55: = | Y55: R1 np | Z55: = | AA55: R1 | AB55: = | AC55: R1 | AD55: = | AE55: R1 | AF55: 7ème Qualifications CD60 R1 2019-2020
A56: CHEREAU | B56: Florian | C56: 127112Y | D56: LAON | E56: CHEREAU Florian | F56: CD02 | W56: N1 np | X56: = | Y56: N1 np | Z56: = | AA56: N1 np | AB56: = | AC56: N1 np | AD56: = | AE56: N1 | AF56: 6ème CD02 N1 2015 - 2016
A57: CHOUX | B57: André | C57: 112123L | D57: GUIGNICOURT | E57: CHOUX André | F57: CD02 | W57: R1 | X57: = | Y57: R1 | Z57: = | AA57: R1 np | AB57: = | AC57: R1 np | AD57: = | AE57: R1 | AF57: 10ème Qualifications CD02 R1 2017 - 2018
A58: CLAIRET | B58: Jean-Claude | C58: 016545J | D58: COURRIERES | E58: CLAIRET Jean-Claude | F58: CD62 | M58: R1 | N58: = | O58: R1 np | P58: = | Q58: R1 np | R58: = | S58: R1 np | T58: = | U58: R1 np | V58: = | W58: R1 np | X58: = | Y58: R1 np | Z58: = | AA58: R1 np | AB58: = | AC58: R1 np | AD58: = | AE58: R1 | AF58: xxème Qualifications CD62 R1 Artois 2011-2012
A59: CLAIRET | B59: Jean-François | C59: 017331P | D59: DIVION | E59: CLAIRET Jean-François | F59: CD62 | G59: R1 | H59: = | I59: R1 np | J59: = | K59: R1 np | L59: = | M59: R1 np | N59: = | O59: R1 | P59: = | Q59: R1 np | R59: = | S59: R1 np | T59: = | U59: R1 np | V59: = | W59: R1 np | X59: = | Y59: R1 np | Z59: = | AA59: R1 np | AB59: = | AC59: R1 np | AD59: = | AE59: R1 | AF59: xxème Qualifications CD62 R1 Artois 2012-2013
A60: CLYNCKE | B60: Jean-Jacques | C60: 017038I | D60: ANNOEULLIN | E60: CLYNCKE Jean-Jacques | F60: CD59 | G60: N1 | H60: = | I60: N1 | J60: = | K60: N1 | L60: = | M60: N1 | N60: = | O60: N1 | P60: = | Q60: N1 | R60: = | S60: N1 | T60: = | U60: N1 | V60: = | W60: N1 | X60: = | Y60: N1 | Z60: = | AA60: N1 | AB60: = | AC60: N1 | AD60: ▼ | AE60: R1 | AF60: 11ème Qualifications CD59 N1 2019-2020 - 97ème classement ranking national 2019-2020
A61: COFFRE | B61: Frédéric | C61: 154322R | D61: CUCQ | E61: COFFRE Frédéric | F61: CD62 | U61: R1 | V61: = | W61: R1 np | X61: = | Y61: R1 | Z61: = | AA61: R1 np | AB61: = | AC61: R1 np | AD61: = | AE61: R1 | AF61: 11ème Qualifications CD62 R1 2017 - 2018
A62: COLAS | B62: Gerard | C62: 127114A | D62: LAON | E62: COLAS Gerard | F62: CD02 | Y62: R1 | Z62: = | AA62: R1 np | AB62: = | AC62: R1 np | AD62: = | AE62: R1 | AF62: 4ème finale CD02 R1 2017 - 2018
A63: CORNOTE | B63: Robert | C63: 136328K | D63: PONT DE METZ | E63: CORNOTE Robert | F63: CD80 | Y63: R1 | Z63: = | AA63: R1 | AB63: = | AC63: R1 np | AD63: = | AE63: R1 | AF63: NC - Classé R2 à la bande et R1 au 3B
A64: CORRE | B64: Maxime | C64: 148496J | D64: GUIGNICOURT | E64: CORRE Maxime | F64: CD02 | Y64: R1 | Z64: = | AA64: R1 np | AB64: = | AC64: R1 np | AD64: = | AE64: R1 | AF64: 6ème finale CD02 R1 2017 - 2018
A65: COUPLET | B65: Sébastien | C65: 159215K | D65: CREVECOEUR | E65: COUPLET Sébastien | F65: CD60 | G65: R1 | J65: 19ème Qualifications CD60 R1 2019-2020 | AC65: R1 | AD65: = | AE65: R1 | AF65: 19ème Qualifications CD60 R1 2019-2020
A66: COUPLET | B66: Valentin | C66: 156823K | D66: CREVECOEUR | E66: =A66 & " " & B66 -> COUPLET Valentin | F66: CD60 | AC66: R1 | AD66: = | AE66: R1 | AF66: 15ème Qualifications CD60 R1 2019-2020
A67: COURCOL | B67: François | C67: 117712K | D67: ANNOEULLIN | E67: COURCOL François | F67: CD59 | AA67: R1 | AB67: = | AC67: R1 | AD67: = | AE67: R1 | AF67: 16ème Qualifications CD59 N1 2019-2020
A68: COUSIN | B68: Francis | C68: 160031X | D68: SAINT QUENTIN | E68: =A68 & " " & B68 -> COUSIN Francis | F68: CD02 | Y68: R1 | Z68: = | AA68: R1 | AB68: = | AC68: R1 | AD68: = | AE68: R1 | AF68: 3ème Qualifications CD02 R1 2019-2020
A69: CUVILLIER | B69: François | C69: 150498K | D69: PONT DE METZ | E69: CUVILLIER François | F69: CD80 | W69: R1 | X69: = | Y69: R1 | Z69: ▲ | AA69: N1 | AB69: = | AC69: N1 np | AD69: = | AE69: N1 | AF69: 8ème Qualifications CD80 N1 2018-2019
A70: CYFFERS | B70: Jean Bernard | C70: 156958G | D70: CUCQ | E70: =A70 & " " & B70 -> CYFFERS Jean Bernard | F70: CD62 | AC70: R1 | AD70: = | AE70: R1 | AF70: 7ème Qualifications CD62 R1 2019-2020
A71: DA SILVA | B71: José | C71: 112137Z | D71: TERGNIER | E71: DA SILVA José | F71: CD02 | W71: R1 | X71: = | Y71: R1 np | Z71: = | AA71: R1 np | AB71: = | AC71: R1 np | AD71: = | AE71: R1 | AF71: 2ème Finale CD02 R1 2016 - 2017
A72: DAMONNEVILLE | B72: Blandine | C72: 123321D | D72: MOREUIL | E72: DAMONNEVILLE Blandine | F72: CD80 | W72: R1 | X72: = | Y72: R1 | Z72: = | AA72: R1 np | AB72: = | AC72: R1 np | AD72: = | AE72: R1 | AF72: 12ème Qualifications CD80 R1 2017 - 2018
A73: DEBOUDT | B73: Jean | C73: 017264A | D73: DUNKERQUE | E73: DEBOUDT Jean | F73: CD59 | I73: R1 | J73: = | K73: R1 np | L73: = | M73: R1 np | N73: = | O73: R1 np | P73: = | Q73: R1 np | R73: = | S73: R1 np | T73: = | U73: R1 np | V73: = | W73: R1 np | X73: = | Y73: R1 np | Z73: = | AA73: R2 np | AB73: = | AC73: R1 np | AD73: = | AE73: R1 | AF73: 16ème Qualifications CD59 R1 2009-2010
A74: DECHAMPS | B74: Enguerrand | C74: 160760P | D74: VAUDESSON | E74: DECHAMPS Enguerrand | F74: CD02 | Y74: R1 | Z74: = | AA74: R1 np | AB74: = | AC74: R1 np | AD74: = | AE74: R1 | AF74: 8ème Qualifications CD02 R1 2017 - 2018
A75: DECONINCK | B75: Franky | C75: 136119J | D75: FACHES-THUMESNIL | E75: DECONINCK Franky | F75: CD59 | M75: N1 | N75: = | O75: N1 | P75: = | Q75: N1 np | R75: = | S75: N1 | T75: = | U75: N1 np | V75: = | W75: N1 np | X75: = | Y75: N1 np | Z75: = | AA75: N1 np | AB75: = | AC75: N1 np | AD75: = | AE75: N1 | AF75: 2ème finale Ligue N1 2014-2015
A76: DECOTTE | B76: Robert | C76: 146924A | D76: FRIVILLE | E76: DECOTTE Robert | F76: CD80 | AA76: R1 | AB76: = | AC76: R1 np | AD76: = | AE76: R1 | AF76: NC 5Q R1 bande N3 3B ==> R1 5Q
A77: DEFENTE | B77: Bruno | C77: 118300A | D77: SOISSONS | E77: DEFENTE Bruno | F77: CD02 | W77: N1 | X77: = | Y77: N1 np | Z77: = | AA77: N1 np | AB77: = | AC77: N1 np | AD77: = | AE77: N1 | AF77: 5ème Finale CD02 N1 2016 - 2017
A78: DELAFOSSE | B78: Gilles | C78: 154009B | D78: PONT DE METZ | E78: DELAFOSSE Gilles | F78: CD80 | W78: R1 | X78: = | Y78: R1 np | Z78: = | AA78: R1 np | AB78: = | AC78: R1 np | AD78: = | AE78: R1 | AF78: 9ème Qualifications CD80 R1 2016 - 2017
A79: DELANDRE | B79: Michel | C79: 137684O | D79: GUIGNICOURT | E79: DELANDRE Michel | F79: CD02 | W79: N1 | X79: = | Y79: N1 np | Z79: = | AA79: N1 np | AB79: = | AC79: N1 np | AD79: = | AE79: N1 | AF79: 103ème Classement National 2016 - 2017
A80: DELAPORTE | B80: Laurent | C80: 021008A | D80: ABBEVILLE | E80: DELAPORTE Laurent | F80: CD80 | AA80: R1 | AB80: = | AC80: R1 np | AD80: = | AE80: R1 | AF80: NC 5Q R1 bande N3 3B ==> R1 5Q
A81: DELATTRE | B81: Christian | C81: 017030A | D81: DIVION | E81: DELATTRE Christian | F81: CD62 | I81: R1 | J81: = | K81: R1 np | L81: = | M81: R1 | N81: = | O81: R1 | P81: = | Q81: R1 np | R81: = | S81: R1 | T81: = | U81: R1 np | V81: = | W81: R1 np | X81: = | Y81: R1 np | Z81: = | AA81: R1 np | AB81: = | AC81: R1 np | AD81: = | AE81: R1 | AF81: 4ème Finale CD62 R1 2016 - 2017
A82: DELATTRE | B82: Gregory | C82: 153535L | D82: GRANDE SYNTHE | E82: DELATTRE Gregory | F82: CD59 | S82: R1 | T82: = | U82: R1 np | V82: = | W82: R1 np | X82: = | Y82: R1 np | Z82: = | AA82: R2 np | AB82: = | AC82: R1 np | AD82: = | AE82: R1 | AF82: 6ème Qualifications CD59 R1 2016-2017
A83: DELATTRE | B83: Hervé | C83: 119970G | D83: MOREUIL | E83: DELATTRE Hervé | F83: CD80 | W83: N1 | X83: = | Y83: N1 | Z83: = | AA83: N1 | AB83: = | AC83: N1 | AD83: = | AE83: N1 | AF83: 72ème classement ranking national 2019-2020
A84: DELATTRE | B84: Julien | C84: 107632S | D84: DIVION | E84: DELATTRE Julien | F84: CD62 | G84: N1 np | H84: = | I84: N1 np | J84: = | K84: N1 np | L84: = | M84: N1 np | N84: = | O84: N1 np | P84: = | Q84: N1 np | R84: = | S84: N1 np | T84: = | U84: N1 np | V84: = | W84: N1 np | X84: = | Y84: N1 np | Z84: = | AA84: N1 np | AB84: = | AC84: N1 np | AD84: = | AE84: N1 | AF84: 1er finale Ligue R1 2007-2008 ou antérieur
A85: DELATTRE | B85: Philippe | C85: 112747L | D85: DIVION | E85: DELATTRE Philippe | F85: CD62 | K85: R1 | L85: = | M85: R1 | N85: = | O85: R1 | P85: = | Q85: R1 np | R85: = | S85: R1 np | T85: = | U85: R1 np | V85: = | W85: R1 np | X85: = | Y85: R1 np | Z85: = | AA85: R1 np | AB85: = | AC85: R1 np | AD85: = | AE85: R1 | AF85: xxème Qualifications CD62 R1 Artois 2012-2013
A86: DELECROIX | B86: Aymerick | C86: 140888U | D86: DIVION | E86: DELECROIX Aymerick | F86: CD62 | K86: R1 | L86: = | M86: R1 np | N86: = | O86: R1 np | P86: = | Q86: R1 np | R86: = | S86: R1 np | T86: = | U86: R1 np | V86: = | W86: R1 np | X86: = | Y86: R1 np | Z86: = | AA86: R1 np | AB86: = | AC86: R1 np | AD86: = | AE86: R1 | AF86: xxème Qualifications CD62 R1 Artois 2010-2011
A87: DELEPIERRE | B87: Patrick | C87: 109142U | D87: FACHES-THUMESNIL | E87: DELEPIERRE Patrick | F87: CD59 | G87: N1 | H87: ▼ | I87: R1 | J87: = | K87: R1 np | L87: = | M87: R1 np | N87: = | O87: R1 np | P87: = | Q87: R1 np | R87: = | S87: R1 np | T87: = | U87: R1 np | V87: = | W87: R1 np | X87: = | Y87: R1 np | Z87: = | AA87: R2 np | AB87: = | AC87: R1 np | AD87: = | AE87: R1 | AF87: xxème Tournois nationaux N1 2009-2010
A88: DELFORGE | B88: Benjamin | C88: 151362Z | D88: ANNOEULLIN | E88: DELFORGE Benjamin | F88: CD59 | Q88: R1 | R88: = | S88: R1 np | T88: = | U88: R1 np | V88: = | W88: R1 np | X88: = | Y88: R1 np | Z88: = | AA88: R2 np | AB88: = | AC88: R1 np | AD88: = | AE88: R1 | AF88: 33ème Qualifications Ligue N1 2013-2014
A89: DELFOSSE | B89: Fabien | C89: 152796H | D89: SAINT QUENTIN | E89: DELFOSSE Fabien | F89: CD02 | Y89: R1 | Z89: = | AA89: R1 | AB89: ▲ | AC89: N1 | AD89: = | AE89: N1 | AF89: 3ème Finale CD02 N1 2019-2020
A90: DELRUE | B90: André | C90: 105710U | D90: VILLENEUVE D'ASCQ | E90: DELRUE André | F90: CD59 | G90: R1 | H90: = | I90: R1 | J90: ▲ | K90: N1 | L90: = | M90: N1 np | N90: = | O90: N1 np | P90: = | Q90: N1 np | R90: = | S90: N1 np | T90: = | U90: N1 np | V90: = | W90: N1 np | X90: = | Y90: N1 np | Z90: = | AA90: N1 | AB90: = | AC90: N1 np | AD90: = | AE90: N1 | AF90: 20ème Qualifications CD59 N1 2018-2019
A91: DELRUE | B91: Céline | C91: 162457J | D91: FRIVILLE | E91: DELRUE Céline | F91: CD80 | Y91: R1 | Z91: = | AA91: R1 | AB91: = | AC91: R1 np | AD91: = | AE91: R1 | AF91: 17ème Qualifications CD80 R1 2018-2019
A92: DELSOL | B92: Philippe | C92: 101151L | D92: ANNOEULLIN | E92: DELSOL Philippe | F92: CD59 | G92: N1 | H92: = | I92: N1 | J92: = | K92: N1 | L92: ▲ | M92: Masters | N92: ▼ | O92: N1 | P92: = | Q92: N1 | R92: = | S92: Masters | T92: ▼ | U92: N1 | V92: = | W92: N1 | X92: = | Y92: N1 | Z92: ▲ | AA92: Masters | AB92: ▼ | AC92: N1 | AD92: = | AE92: N1 | AF92: 1er Finale CD59 N1 2019-2020
A93: DEMAZIERES | B93: David | C93: 016939N | D93: ST POL SUR MER | E93: DEMAZIERES David | F93: CD59 | I93: R1 | J93: = | K93: R1 np | L93: = | M93: R1 np | N93: = | O93: R1 np | P93: = | Q93: R1 np | R93: = | S93: R1 np | T93: = | U93: R1 np | V93: = | W93: R1 np | X93: = | Y93: R1 np | Z93: = | AA93: R2 np | AB93: = | AC93: R1 np | AD93: = | AE93: R1 | AF93: 13ème Qualifications CD59 R1 2009-20010
A94: DEMILLY | B94: Dominique | C94: 017062G | D94: FACHES-THUMESNIL | E94: DEMILLY Dominique | F94: CD59 | G94: R1 | H94: = | I94: R1 | J94: = | K94: R1 np | L94: = | M94: R1 np | N94: = | O94: R1 np | P94: = | Q94: R1 np | R94: = | S94: R1 np | T94: = | U94: R1 np | V94: = | W94: R1 np | X94: = | Y94: R1 np | Z94: = | AA94: R2 np | AB94: = | AC94: R1 np | AD94: = | AE94: R1 | AF94: 18ème Qualifications CD59 R1 2008-2009
A95: DEPLECHIN | B95: Robert | C95: 138329J | D95: LE TOUQUET | E95: DEPLECHIN Robert | F95: CD62 | I95: R1 | J95: = | K95: R1 | L95: = | M95: R1 | N95: = | O95: R1 | P95: ▲ | Q95: N1 | R95: = | S95: N1 | T95: = | U95: N1 | V95: = | W95: N1 np | X95: = | Y95: N1 | Z95: = | AA95: N1 | AB95: = | AC95: N1 np | AD95: = | AE95: N1 | AF95: 2ème Finale CD62 N1 2018 - 2019
A96: DEPLECHIN | B96: Roland | C96: 154167Y | D96: CUCQ | E96: DEPLECHIN Roland | F96: CD62 | U96: R1 | V96: = | W96: R1 | X96: = | Y96: R1 | Z96: = | AA96: R1 | AB96: ▲ | AC96: N1 | AD96: = | AE96: N1 | AF96: 4ème Qualifications CD62 N1 2019-2020
A97: DEREUDDRE | B97: Dominique | C97: 160916J | D97: GRANDE SYNTHE | E97: DEREUDDRE Dominique | F97: CD59 | Y97: R1 | Z97: = | AA97: R2 | AB97: = | AC97: R1 | AD97: = | AE97: R1 | AF97: 6ème Finale CD59 R1 2019-2020
A98: DEROLEZ | B98: Jean-Pierre | C98: 101152M | D98: ANNOEULLIN | E98: DEROLEZ Jean-Pierre | F98: CD59 | G98: R1 | H98: = | I98: R1 | J98: = | K98: R1 | L98: = | M98: R1 | N98: ▲ | O98: N1 | P98: = | Q98: N1 | R98: = | S98: N1 | T98: = | U98: N1 | V98: = | W98: N1 | X98: = | Y98: N1 | Z98: = | AA98: R1 | AB98: ▲ | AC98: N1 | AD98: = | AE98: N1 | AF98: 5ème Finale CD59 N1 2019-2020 - 94ème classement ranking national 2019-2020
A99: DESBONNETS | B99: Clémentine | C99: 131440K | D99: DUNKERQUE | E99: DESBONNETS Clémentine | F99: CD59 | G99: R1 | H99: = | I99: R1 np | J99: = | K99: R1 np | L99: = | M99: R1 np | N99: = | O99: R1 np | P99: = | Q99: R1 np | R99: = | S99: R1 np | T99: = | U99: R1 np | V99: = | W99: R1 np | X99: = | Y99: R1 np | Z99: = | AA99: R2 np | AB99: = | AC99: R1 np | AD99: = | AE99: R1 | AF99: 25ème Qualifications CD59 R1 2008-2009
A100: DESCLAIR | B100: Guy | C100: 137802C | D100: SENLIS | E100: DESCLAIR Guy | F100: CD60 | W100: N1 | X100: ▼ | Y100: R1 | Z100: = | AA100: R1 | AB100: = | AC100: R1 | AD100: = | AE100: R1 | AF100: 6ème Qualifications CD60 R1 2019-2020
A101: DESMETTRE | B101: Bruno | C101: 016604Q | D101: RONCHIN | E101: DESMETTRE Bruno | F101: CD59 | AA101: N1 | AB101: = | AC101: N1 | AD101: = | AE101: N1 | AF101: 14ème Qualifications CD59 N1 2019-2020
A102: DESSAINT | B102: Alain | C102: 016757N | D102: BILLY MONTIGNY | E102: DESSAINT Alain | F102: CD62 | K102: R1 | L102: = | M102: R1 np | N102: = | O102: R1 np | P102: = | Q102: R1 np | R102: = | S102: R1 np | T102: = | U102: R1 np | V102: = | W102: R1 np | X102: = | Y102: R1 np | Z102: = | AA102: R1 np | AB102: = | AC102: R1 np | AD102: = | AE102: R1 | AF102: xxème Qualifications CD62 R1 Artois 2010-2011
A103: DESWELLE | B103: Jean-Pierre | C103: 016654O | D103: DUNKERQUE | E103: DESWELLE Jean-Pierre | F103: CD59 | G103: N1 np | H103: = | I103: N1 np | J103: = | K103: N1 np | L103: = | M103: N1 np | N103: = | O103: N1 np | P103: = | Q103: N1 np | R103: = | S103: N1 np | T103: = | U103: N1 np | V103: = | W103: N1 np | X103: = | Y103: N1 np | Z103: = | AA103: N1 np | AB103: = | AC103: N1 np | AD103: = | AE103: N1 | AF103: 4ème Finale district maritime N1 2007-2008 ou antérieur
A104: DEVOS | B104: Jackie | C104: 121408O | D104: GRAVELINES | E104: DEVOS Jackie | F104: CD59 | G104: R1 | H104: = | I104: R1 | J104: ▲ | K104: N1 | L104: = | M104: N1 | N104: = | O104: N1 | P104: = | Q104: N1 | R104: = | S104: N1 | T104: = | U104: N1 | V104: = | W104: N1 np | X104: = | Y104: N1 | Z104: = | AA104: R1 np | AB104: = | AC104: R1 | AD104: ▲ | AE104: N1 | AF104: 1er Finale CD59 R1 2019-2020
A105: DEWEVRE | B105: Jordan | C105: 140888U | D105: DIVION | E105: DEWEVRE Jordan | F105: CD62 | I105: R1 | J105: = | K105: R1 | L105: = | M105: R1 np | N105: = | O105: R1 np | P105: = | Q105: R1 np | R105: = | S105: R1 np | T105: = | U105: R1 np | V105: = | W105: R1 np | X105: = | Y105: R1 np | Z105: = | AA105: R1 np | AB105: = | AC105: R1 np | AD105: = | AE105: R1 | AF105: 4ème Finale CD62 2010-2011
A106: DIEU | B106: Jean-Charles | C106: 143987Z | D106: MOREUIL | E106: DIEU Jean-Charles | F106: CD80 | Y106: R1 | Z106: = | AA106: R1 | AB106: = | AC106: R1 np | AD106: = | AE106: R1 | AF106: 10ème Qualifications CD80 R1 2018-2019 - 109ème ème tournois nationaux 2018-2019
A107: DIOT | B107: Alain | C107: 152487X | D107: CHAMBLY | E107: DIOT Alain | F107: CD60 | W107: R1 | X107: = | Y107: R1 np | Z107: = | AA107: R1 | AB107: = | AC107: R1 np | AD107: = | AE107: R1 | AF107: 10ème Qualifications CD60 R1 2018-2019
A108: DONNEAU | B108: Philippe | C108: 138350E | D108: ANNOEULLIN | E108: DONNEAU Philippe | F108: CD59 | AA108: R2 | AB108: = | AC108: N1 np | AD108: = | AE108: N1 | AF108: 19ème Qualifications CD59 N1 2018-2019
A109: DRUON | B109: Christian | C109: 017249L | D109: BILLY MONTIGNY | E109: DRUON Christian | F109: CD62 | M109: R1 | N109: = | O109: R1 | P109: = | Q109: R1 np | R109: = | S109: R1 np | T109: = | U109: R1 np | V109: = | W109: R1 np | X109: = | Y109: R1 np | Z109: = | AA109: R1 np | AB109: = | AC109: R1 np | AD109: = | AE109: R1 | AF109: xxème Qualifications CD62 R1 Artois 2012-2013
A110: DUBOIS | B110: Jean-Bernard | C110: 151705X | D110: PONT DE METZ | E110: DUBOIS Jean-Bernard | F110: CD80 | W110: R1 | X110: = | Y110: R1 | Z110: = | AA110: R1 np | AB110: = | AC110: R1 np | AD110: = | AE110: R1 | AF110: 6ème Qualifications CD80 R1 2017 - 2018
A111: DUC | B111: Stéphane | C111: 168735H | D111: RONCHIN | E111: DUC Stéphane | F111: CD59 | AC111: R1 np | AD111: = | AE111: R1 | AF111: NC - Nouveau joueur de billard
A112: DUCHATEAU | B112: Jean-Pierre | C112: 140116C | D112: CREPY EN VALOIS | E112: DUCHATEAU Jean-Pierre | F112: CD60 | W112: R1 | X112: = | Y112: R1 np | Z112: = | AA112: R1 np | AB112: = | AC112: R1 | AD112: = | AE112: R1 | AF112: 10ème Qualifications CD60 R1 2019-2020 - 116ème classement ranking national 2019-2020
A113: DUCROCQ | B113: Joël | C113: 103017F | D113: WIMILLE | E113: =A113 & " " & B113 -> DUCROCQ Joël | F113: CD62 | AC113: R1 | AD113: = | AE113: R1 | AF113: 6ème Qualifications CD62 R1 2019-2020
A114: DUFRESNOY | B114: Michel | C114: 020761N | D114: PONT DE METZ | E114: DUFRESNOY Michel | F114: CD80 | AA114: R1 | AB114: = | AC114: R1 np | AD114: ▲ | AE114: N1 | AF114: 3ème finale CD80 R1 2018-2019
A115: DUHAMEL | B115: Eddy | C115: 021009B | D115: ABBEVILLE | E115: DUHAMEL Eddy | F115: CD80 | W115: N1 | X115: ▼ | Y115: R1 | Z115: = | AA115: R1 | AB115: ▲ | AC115: N1 np | AD115: = | AE115: N1 | AF115: 4ème Finale CD80 R1 2018-2019
A116: DUHAMEL | B116: Marcellin | C116: 020868Q | D116: ABBEVILLE | E116: DUHAMEL Marcellin | F116: CD80 | W116: N1 | X116: ▼ | Y116: R1 | Z116: = | AA116: R1 | AB116: = | AC116: R1 np | AD116: = | AE116: R1 | AF116: 12ème Qualifications CD80 R1 2018-2019
A117: DUMEIGE | B117: Similien | C117: 156348T | D117: MOREUIL | E117: DUMEIGE Similien | F117: CD80 | Y117: R1 | Z117: = | AA117: R1 | AB117: = | AC117: R1 np | AD117: = | AE117: R1 | AF117: 5ème Qualifications CD80 R1 2018-2019
A118: DUMEIGE | B118: Stéphane | C118: 152672Y | D118: MOREUIL | E118: DUMEIGE Stéphane | F118: CD80 | Y118: R1 | Z118: = | AA118: R1 | AB118: ▲ | AC118: N1 np | AD118: = | AE118: N1 | AF118: 2ème Finale CD80 R1 2018-2019 - 103ème tournois nationaux 2018-2019
A119: DUPONT | B119: Fabrice | C119: 020718W | D119: ABBEVILLE | E119: DUPONT Fabrice | F119: CD80 | W119: N1 | X119: = | Y119: N1 np | Z119: = | AA119: N1 | AB119: = | AC119: N1 np | AD119: = | AE119: N1 | AF119: 5ème Finale Ligue N1 2018-2019
A120: DURAND | B120: Jérémy | C120: 125811X | D120: TERGNIER | E120: DURAND Jérémy | F120: CD02 | W120: N1 | X120: = | Y120: N1 np | Z120: = | AA120: N1 | AB120: = | AC120: N1 np | AD120: ▼ | AE120: R1 | AF120: 4ème Finale CD02 N1 2019-2020
A121: DUROYON | B121: Didier | C121: 112201L | D121: MOREUIL | E121: DUROYON Didier | F121: CD80 | W121: N1 | X121: = | Y121: N1 | Z121: = | AA121: N1 | AB121: = | AC121: N1 np | AD121: = | AE121: N1 | AF121: 3ème Finale CD80 N1 2018-2019
A122: DURTETTE | B122: Daniel | C122: 141367F | D122: LAON | E122: DURTETTE Daniel | F122: CD02 | Y122: R1 | Z122: = | AA122: R1 np | AB122: = | AC122: N1 np | AD122: = | AE122: R1 | AF122: 11ème Qualifications CD02 R1 2017 - 2018
A123: DUSSART | B123: Paméla | C123: 017290A | D123: DIVION | E123: DUSSART Paméla | F123: CD62 | M123: R1 | N123: = | O123: R1 np | P123: = | Q123: R1 np | R123: = | S123: R1 np | T123: = | U123: R1 np | V123: = | W123: R1 np | X123: = | Y123: R1 np | Z123: = | AA123: R1 np | AB123: = | AC123: R1 np | AD123: = | AE123: R1 | AF123: xxème Qualifications CD62 R1 Artois 2011-2012
A124: DUTAILLY | B124: Michel | C124: 151159D | D124: GRANDE SYNTHE | E124: DUTAILLY Michel | F124: CD59 | U124: R1 | V124: = | W124: R1 | X124: = | Y124: R1 | Z124: = | AA124: R2 | AB124: = | AC124: R1 | AD124: = | AE124: R1 | AF124: 16ème Qualifications CD59 R1 2019-2020
A125: ELIARD | B125: Cédric | C125: 020827B | D125: LAON | E125: ELIARD Cédric | F125: CD02 | W125: N1 np | X125: = | Y125: N1 np | Z125: = | AA125: N1 np | AB125: = | AC125: N1 np | AD125: = | AE125: N1 | AF125: 8ème CD02 N1 2015 - 2016
A126: ELIARD | B126: Yvon | C126: 020682M | D126: LAON | E126: ELIARD Yvon | F126: CD02 | W126: N1 np | X126: = | Y126: N1 np | Z126: = | AA126: N1 np | AB126: = | AC126: N1 np | AD126: = | AE126: N1 | AF126: 7ème CD02 N1 2015 - 2016
A127: ESTERMANS | B127: Bernard | C127: 138943Z | D127: GRAVELINES | E127: ESTERMANS Bernard | F127: CD59 | G127: R1 | H127: = | I127: R1 | J127: = | K127: R1 | L127: ▲ | M127: N1 | N127: = | O127: N1 | P127: = | Q127: N1 | R127: = | S127: N1 | T127: ▼ | U127: R1 | V127: = | W127: R1 | X127: = | Y127: R1 | Z127: = | AA127: R1 | AB127: ▲ | AC127: N1 | AD127: = | AE127: N1 | AF127: 13ème Qualifications CD59 N1 2019-2020
A128: FAUCOMPREZ | B128: Didier | C128: 0131015Z | D128: ANNOEULLIN | E128: FAUCOMPREZ Didier | F128: CD59 | K128: N1 | L128: = | M128: N1 np | N128: = | O128: N1 np | P128: = | Q128: N1 np | R128: = | S128: N1 np | T128: = | U128: N1 np | V128: = | W128: N1 np | X128: = | Y128: N1 np | Z128: = | AA128: N1 np | AB128: = | AC128: N1 np | AD128: = | AE128: N1 | AF128: 17ème CF N1 2012-2013
A129: FAURE | B129: Stéphane | C129: 140114A | D129: CREPY EN VALOIS | E129: FAURE Stéphane | F129: CD60 | Y129: R1 | Z129: ▲ | AA129: N1 | AB129: = | AC129: N1 | AD129: = | AE129: N1 | AF129: 3ème Qualifications CD60 2019-2020 - 70ème classement ranking national
A130: FERMAUT | B130: Jean-Marie | C130: 016918S | D130: DIVION | E130: FERMAUT Jean-Marie | F130: CD62 | G130: N1 | H130: = | I130: N1 np | J130: = | K130: N1 np | L130: = | M130: N1 np | N130: = | O130: N1 np | P130: = | Q130: N1 np | R130: = | S130: N1 np | T130: = | U130: N1 np | V130: = | W130: N1 np | X130: = | Y130: N1 np | Z130: = | AA130: N1 np | AB130: = | AC130: N1 | AD130: = | AE130: N1 | AF130: 6ème Qualifications CD62 N1 2019-2020
A131: FLAHAUT | B131: Ghislain | C131: 159163D | D131: CUCQ | E131: FLAHAUT Ghislain | F131: CD62 | Y131: R1 | Z131: = | AA131: R1 | AB131: = | AC131: R1 | AD131: = | AE131: R1 | AF131: 9ème Qualifications CD62 R1 2019-2020
A132: FLEURANT | B132: Alexandre | C132: 141329T | D132: DENAIN | E132: FLEURANT Alexandre | F132: CD59 | M132: R1 | N132: = | O132: R1 | P132: = | Q132: R1 np | R132: = | S132: R1 np | T132: = | U132: R1 np | V132: = | W132: R1 np | X132: = | Y132: R1 np | Z132: = | AA132: R2 np | AB132: = | AC132: R1 np | AD132: = | AE132: R1 | AF132: 4ème Finale CD59 R1 2012-2013
A133: FLEURANT | B133: Richard | C133: 016709R | D133: DENAIN | E133: FLEURANT Richard | F133: CD59 | G133: R1 | H133: = | I133: R1 | J133: = | K133: R1 | L133: = | M133: R1 | N133: ▲ | O133: N1 | P133: = | Q133: N1 | R133: = | S133: N1 np | T133: = | U133: N1 np | V133: = | W133: N1 np | X133: = | Y133: N1 np | Z133: = | AA133: N1 np | AB133: = | AC133: N1 np | AD133: = | AE133: N1 | AF133: 2ème Finale Ligue R1 2011-2012
A134: FONTAINE | B134: Christian | C134: 112748M | D134: DIVION | E134: =A134 & " " & B134 -> FONTAINE Christian | F134: CD62 | I134: R1 | J134: ▲ | K134: N1 | L134: = | M134: N1 np | N134: = | O134: N1 np | P134: = | Q134: N1 np | R134: = | S134: N1 np | T134: = | U134: N1 np | V134: = | W134: N1 np | X134: = | Y134: N1 np | Z134: = | AA134: N1 | AB134: = | AC134: N1 | AD134: = | AE134: N1 | AF134: 8ème Qualifications CD62 N1 2019-2020
A135: FONTAINE | B135: Dany | C135: 101139Z | D135: ANNOEULLIN | E135: FONTAINE Dany | F135: CD59 | AA135: N1 | AB135: = | AC135: N1 np | AD135: = | AE135: N1 | AF135: 29ème Finale France N1 2018-2019
A136: FOULON | B136: Jeremy | C136: 138344Y | D136: COURRIERES | E136: FOULON Jeremy | F136: CD62 | S136: R1 | T136: = | U136: R1 np | V136: = | W136: R1 np | X136: = | Y136: R1 np | Z136: = | AA136: R1 np | AB136: = | AC136: R1 np | AD136: = | AE136: R1 | AF136: Nouveau joueur 2013-2014 - Pas de résultats connus
A137: FRADET | B137: David | C137: 133127H | D137: ST POL SUR MER | E137: FRADET David | F137: CD59 | S137: N1 | T137: = | U137: N1 np | V137: = | W137: N1 np | X137: = | Y137: N1 np | Z137: = | AA137: N1 np | AB137: = | AC137: N1 np | AD137: = | AE137: N1 | AF137: 23ème qualifications ligue 2014-2015
A138: FRADET | B138: Noël | C138: 016695D | D138: ST POL SUR MER | E138: FRADET Noël | F138: CD59 | I138: R1 | J138: = | K138: R1 np | L138: = | M138: R1 np | N138: = | O138: R1 np | P138: = | Q138: R1 np | R138: = | S138: R1 np | T138: = | U138: R1 np | V138: = | W138: R1 np | X138: = | Y138: R1 np | Z138: = | AA138: R2 np | AB138: = | AC138: R1 np | AD138: = | AE138: R1 | AF138: 8ème Qualifications CD59 R1 2009-2010
A139: FRISON | B139: Michel | C139: 152548N | D139: GUIGNICOURT | E139: FRISON Michel | F139: CD02 | W139: R1 | X139: ▲ | Y139: N1 | Z139: = | AA139: N1 np | AB139: = | AC139: N1 np | AD139: = | AE139: N1 | AF139: 2ème Finale CD02 N1 2017 - 2018
A140: GAMBIER | B140: Francis | C140: 165884J | D140: CUCQ | E140: =A140 & " " & B140 -> GAMBIER Francis | F140: CD62 | AA140: R1 | AB140: = | AC140: R1 | AD140: = | AE140: R1 | AF140: 8ème Qualifications CD62 R1 2019-2020
A141: GAREST | B141: Olivier | C141: 102590U | D141: ABBEVILLE | E141: GAREST Olivier | F141: CD80 | AA141: R1 | AB141: = | AC141: R1 np | AD141: = | AE141: R1 | AF141: NC
A142: GEETS | B142: Patrice | C142: 126847T | D142: ANNOEULLIN | E142: GEETS Patrice | F142: CD59 | G142: N1 | H142: = | I142: N1 | J142: = | K142: N1 | L142: = | M142: N1 | N142: = | O142: N1 | P142: = | Q142: N1 np | R142: = | S142: N1 | T142: = | U142: N1 | V142: = | W142: N1 | X142: = | Y142: N1 | Z142: = | AA142: N1 | AB142: = | AC142: N1 | AD142: = | AE142: N1 | AF142: 28ème Classement ranking national 2019-2020
A143: GENNIN | B143: Jean-Robert | C143: 133074G | D143: VILLENEUVE D'ASCQ | E143: GENNIN Jean-Robert | F143: CD59 | G143: R1 | H143: = | I143: R1 np | J143: = | K143: R1 np | L143: = | M143: R1 np | N143: = | O143: R1 np | P143: = | Q143: R1 np | R143: = | S143: R1 np | T143: = | U143: R1 np | V143: = | W143: R1 np | X143: = | Y143: R1 np | Z143: = | AA143: R2 np | AB143: = | AC143: R1 np | AD143: = | AE143: R1 | AF143: xxème Qualifications CD59 R1 Flandres < 2008
A144: GEOFFROY | B144: Florent | C144: 123333P | D144: CREVECOEUR | E144: =A144 & " " & B144 -> GEOFFROY Florent | F144: CD60 | AC144: R1 | AD144: = | AE144: R1 | AF144: 9ème Qualifications CD60 R1 2019-2020
A145: GODARD | B145: Alain | C145: 152303X | D145: PONT DE METZ | E145: GODARD Alain | F145: CD80 | W145: N1 | X145: = | Y145: N1 | Z145: = | AA145: N1 | AB145: = | AC145: N1 | AD145: = | AE145: N1 | AF145: 42ème Classement ranking national 2019-2020
A146: GODEFROIDT | B146: Michel | C146: 016859L | D146: RONCHIN | E146: GODEFROIDT Michel | F146: CD59 | G146: R1 np | H146: = | I146: R1 np | J146: = | K146: R1 np | L146: = | M146: R1 np | N146: = | O146: R1 np | P146: = | Q146: R1 np | R146: = | S146: R1 np | T146: = | U146: R1 np | V146: = | W146: R1 np | X146: = | Y146: R1 np | Z146: = | AA146: R2 np | AB146: = | AC146: R1 np | AD146: = | AE146: R1 | AF146: 11ème Qualifications CD59 R1 2008-2009
A147: GOETINCK | B147: Frédéric | C147: 117692Q | D147: BILLY MONTIGNY | E147: GOETINCK Frédéric | F147: CD62 | M147: R1 | N147: = | O147: R1 np | P147: = | Q147: R1 np | R147: = | S147: R1 np | T147: = | U147: R1 np | V147: = | W147: R1 np | X147: = | Y147: R1 np | Z147: = | AA147: R1 np | AB147: = | AC147: R1 np | AD147: = | AE147: R1 | AF147: 3ème Finale Ligue R1 2011-2012
A148: GORAZDA | B148: Tom | C148: 149165L | D148: SOISSONS | E148: GORAZDA Tom | F148: CD02 | W148: N1 np | X148: = | Y148: N1 np | Z148: = | AA148: N1 np | AB148: = | AC148: N1 np | AD148: = | AE148: N1 | AF148: 1er CD02 R1 2015 - 2016
A149: GORET | B149: Patrick | C149: 020963H | D149: GUIGNICOURT | E149: GORET Patrick | F149: CD02 | W149: N1 | X149: = | Y149: N1 | Z149: = | AA149: N1 | AB149: = | AC149: N1 np | AD149: = | AE149: N1 | AF149: 3ème Finale CD02 N1 2017 - 2018
A150: GREMAIN | B150: Gino | C150: 017226O | D150: WIZERNES | E150: GREMAIN Gino | F150: CD59 | G150: Masters | H150: = | I150: Masters | J150: = | K150: Masters | L150: = | M150: Masters | N150: = | O150: Masters | P150: ▼ | Q150: Masters | R150: = | S150: Masters | T150: ▼ | U150: N1 np | V150: = | W150: N1 np | X150: = | Y150: N1 np | Z150: = | AA150: N1 np | AB150: = | AC150: N1 np | AD150: = | AE150: N1 | AF150: 20ème Classement ranking 2014-2015
A151: GROLLET | B151: Fabien | C151: 110544S | D151: VILLENEUVE D'ASCQ | E151: GROLLET Fabien | F151: CD59 | G151: N1 np | H151: = | I151: N1 | J151: = | K151: N1 np | L151: = | M151: N1 np | N151: = | O151: N1 np | P151: = | Q151: N1 | R151: = | S151: N1 np | T151: = | U151: N1 np | V151: = | W151: N1 np | X151: = | Y151: N1 np | Z151: = | AA151: N1 np | AB151: = | AC151: N1 np | AD151: = | AE151: N1 | AF151: 22ème Qualifications Ligue N1 2013-2014
A152: GROSS | B152: Xavier | C152: 155562P | D152: VILLERS ST PAUL | E152: GROSS Xavier | F152: CD60 | AA152: R1 | AB152: = | AC152: R1 np | AD152: = | AE152: R1 | AF152: 8ème Qualifications CD60 R1 2018-2019
A153: GUERIN | B153: Astrid | C153: 165938S | D153: MOREUIL | E153: GUERIN Astrid | F153: CD80 | AA153: R1 | AB153: = | AC153: R1 np | AD153: = | AE153: R1 | AF153: 14ème Qualifications CD80 R1 2018-2019
A154: GUERIN | B154: Isabelle | C154: 159953M | D154: MOREUIL | E154: GUERIN Isabelle | F154: CD80 | W154: R1 | X154: = | Y154: R1 | Z154: = | AA154: R1 np | AB154: = | AC154: R1 np | AD154: = | AE154: R1 | AF154: 20ème Qualifications CD80 R1 2017 - 2018
A155: GUERIN | B155: Régis | C155: 149894D | D155: MOREUIL | E155: GUERIN Régis | F155: CD80 | W155: N1 | X155: = | Y155: N1 | Z155: = | AA155: N1 | AB155: = | AC155: N1 | AD155: = | AE155: N1 | AF155: 31ème Classement ranking national 2019-2020
A156: GUILBERT | B156: Raymond | C156: 016533X | D156: COURRIERES | E156: GUILBERT Raymond | F156: CD62 | O156: R1 | P156: = | Q156: R1 np | R156: = | S156: R1 np | T156: = | U156: R1 np | V156: = | W156: R1 np | X156: = | Y156: R1 np | Z156: = | AA156: R1 np | AB156: = | AC156: R1 np | AD156: = | AE156: R1 | AF156: xxème Qualifications CD62 R1 Artois 2012-2013
A157: GUILLEMANT | B157: Alexandre | C157: 016874A | D157: ANNOEULLIN | E157: GUILLEMANT Alexandre | F157: CD59 | G157: Masters | H157: = | I157: Masters | J157: = | K157: Masters | L157: = | M157: Masters | N157: = | O157: Masters | P157: = | Q157: Masters np | R157: ▼ | S157: N1 np | T157: = | U157: N1 np | V157: = | W157: N1 np | X157: = | Y157: N1 np | Z157: = | AA157: N1 np | AB157: = | AC157: N1 np | AD157: = | AE157: N1 | AF157: 2ème CF Masters 2012-2013
A158: GUILLEMANT | B158: David | C158: 016875B | D158: ANNOEULLIN | E158: GUILLEMANT David | F158: CD59 | G158: Masters | H158: = | I158: Masters | J158: = | K158: Masters | L158: = | M158: Masters | N158: = | O158: Masters | P158: = | Q158: Masters | R158: ▼ | S158: Masters | T158: = | U158: Masters | V158: = | W158: Masters | X158: = | Y158: Masters | Z158: = | AA158: Masters | AB158: ▼ | AC158: N1 | AD158: ▲ | AE158: Masters | AF158: 14ème Classement ranking national 2019-2020
A159: GUILLEMANT | B159: Jean-Marc | C159: 017025V | D159: ANNOEULLIN | E159: GUILLEMANT Jean-Marc | F159: CD59 | G159: N1 | H159: = | I159: N1 | J159: = | K159: N1 | L159: = | M159: N1 | N159: = | O159: N1 | P159: = | Q159: N1 np | R159: = | S159: N1 np | T159: = | U159: N1 np | V159: = | W159: N1 np | X159: = | Y159: N1 np | Z159: = | AA159: N1 np | AB159: = | AC159: N1 np | AD159: = | AE159: N1 | AF159: 17ème T5 National 2012-2013
A160: GUILLUY | B160: Jean-René | C160: 146929F | D160: VILLENEUVE D'ASCQ | E160: GUILLUY Jean-René | F160: CD59 | O160: R1 | P160: = | Q160: R1 np | R160: = | S160: R1 np | T160: = | U160: R1 np | V160: = | W160: R1 np | X160: = | Y160: R1 np | Z160: = | AA160: R2 np | AB160: = | AC160: N1 np | AD160: = | AE160: N1 | AF160: 34ème Qualifications Ligue N1 2012-2013
A161: HECQ | B161: Anthony | C161: 151267W | D161: VAUDESSON | E161: HECQ Anthony | F161: CD02 | Y161: R1 | Z161: = | AA161: R1 np | AB161: = | AC161: R1 np | AD161: = | AE161: R1 | AF161: 3ème finale CD02 R1 2017 - 2018
A162: HENNEUSE | B162: Patrick | C162: 016721D | D162: BRUAY SUR ESCAUT | E162: HENNEUSE Patrick | F162: CD59 | G162: R1 np | H162: = | I162: R1 | J162: ▲ | K162: N1 | L162: = | M162: N1 np | N162: = | O162: N1 | P162: = | Q162: N1 np | R162: = | S162: N1 np | T162: = | U162: N1 np | V162: = | W162: N1 np | X162: = | Y162: N1 np | Z162: = | AA162: N1 np | AB162: = | AC162: N1 np | AD162: = | AE162: N1 | AF162: 13ème Qualifications Ligue N1 2012-2013
A163: HENRY | B163: Tony | C163: 119963Z | D163: ABBEVILLE | E163: HENRY Tony | F163: CD80 | Y163: R1 | Z163: ▲ | AA163: N1 | AB163: = | AC163: N1 np | AD163: = | AE163: N1 | AF163: 10ème Qualifications CD80 N1 2018-2019
A164: HERMANT | B164: Jacques | C164: 125113B | D164: CHALLANS | E164: HERMANT Jacques | F164: CD60 | W164: N1 | X164: = | Y164: N1 np | Z164: = | AA164: N1 np | AB164: = | AC164: N1 np | AD164: = | AE164: N1 | AF164: 13ème Qualifications CD60 2016 - 2017
A165: HERREBRECHT | B165: Emerick | C165: 136110A | D165: GRAVELINES | E165: HERREBRECHT Emerick | F165: CD59 | Q165: R1 | R165: = | S165: R1 | T165: = | U165: R1 | V165: = | W165: R1 | X165: ▲ | Y165: N1 | Z165: = | AA165: R1 | AB165: = | AC165: R1 | AD165: ▲ | AE165: N1 | AF165: 10ème Qualifications CD59 N1 2019-2020 - 96ème classement ranking national 2019-2020
A166: HERREBRECHT | B166: Erian | C166: 146733P | D166: GRAVELINES | E166: HERREBRECHT Erian | F166: CD59 | Q166: R1 | R166: = | S166: R1 | T166: = | U166: R1 | V166: ▲ | W166: N1 | X166: ▼ | Y166: R1 | Z166: ▲ | AA166: N1 | AB166: = | AC166: N1 | AD166: = | AE166: N1 | AF166: 6ème Finale CD59 N1 2019-2020 - 106ème classement ranking national 2019-2020
A167: HERREBRECHT | B167: Thierry | C167: 017224M | D167: GRAVELINES | E167: HERREBRECHT Thierry | F167: CD59 | G167: N1 | H167: ▲ | I167: Masters | J167: ▼ | K167: N1 | L167: ▲ | M167: Masters | N167: ▼ | O167: N1 | P167: = | Q167: N1 | R167: = | S167: Masters | T167: = | U167: Masters * | V167: ▼ | W167: N1 | X167: ▲ | Y167: Masters | Z167: = | AA167: Masters np | AB167: = | AC167: N1 | AD167: = | AE167: N1 | AF167: 3ème Finale CD59 N1 2019-2020
A168: HERSELIN | B168: Jean-Claude | C168: 136326I | D168: PONT DE METZ | E168: HERSELIN Jean-Claude | F168: CD80 | W168: R1 | X168: = | Y168: R1 | Z168: = | AA168: R1 | AB168: = | AC168: R1 np | AD168: = | AE168: R1 | AF168: 13ème Qualifications CD80 R1 2018-2019
A169: HERTOUX | B169: Didier | C169: 020497J | D169: BEAUVAIS | E169: HERTOUX Didier | F169: CD60 | Y169: R1 | Z169: = | AA169: R1 np | AB169: = | AC169: R1 | AD169: = | AE169: R1 | AF169: 16ème Qualifications CD60 R1 2019-2020
A170: HILAIRE | B170: Jimmy | C170: 137050E | D170: LYON | E170: HILAIRE Jimmy | F170: CD59 | M170: R1 | N170: = | O170: R1 np | P170: = | Q170: R1 np | R170: = | S170: R1 np | T170: = | U170: R1 np | V170: = | W170: R1 np | X170: = | Y170: R1 np | Z170: = | AA170: R2 np | AB170: = | AC170: R1 np | AD170: = | AE170: R1 | AF170: 10ème Qualifications CD59 R1 2011-2012
A171: HINGRAND | B171: Tony | C171: 151434C | D171: GRAVELINES | E171: HINGRAND Tony | F171: CD59 | S171: R1 | T171: ▲ | U171: N1 | V171: = | W171: N1 np | X171: = | Y171: N1 np | Z171: = | AA171: R1 np | AB171: = | AC171: N1 np | AD171: = | AE171: N1 | AF171: 18ème Qualifications Ligue N1 2015-2016
A172: HOCHART | B172: James | C172: 127686A | D172: DENAIN | E172: HOCHART James | F172: CD59 | G172: R1 | H172: = | I172: R1 np | J172: = | K172: R1 | L172: = | M172: R1 | N172: = | O172: R1 | P172: = | Q172: R1 | R172: = | S172: R1 np | T172: = | U172: R1 | V172: = | W172: R1 np | X172: = | Y172: R1 np | Z172: = | AA172: R2 | AB172: = | AC172: R1 | AD172: = | AE172: R1 | AF172: 8ème Qualifications CD59 R1 2019-2020
A173: HORNAIN | B173: Denis | C173: 016710S | D173: DENAIN | E173: HORNAIN Denis | F173: CD59 | G173: N1 | H173: = | I173: N1 | J173: = | K173: N1 | L173: = | M173: N1 np | N173: = | O173: N1 | P173: ▼ | Q173: R1 np | R173: = | S173: R1 np | T173: = | U173: R1 np | V173: = | W173: R1 np | X173: = | Y173: R1 np | Z173: = | AA173: R1 np | AB173: = | AC173: R1 | AD173: ▲ | AE173: N1 | AF173: 5ème Finale CD59 R1 2019-2020
A174: HULOT | B174: Sophie | C174: 133130K | D174: GRAVELINES | E174: HULOT Sophie | F174: CD59 | G174: R1 | H174: = | I174: R1 | J174: = | K174: R1 | L174: = | M174: R1 np | N174: = | O174: R1 np | P174: = | Q174: R1 np | R174: = | S174: R1 np | T174: = | U174: R1 np | V174: = | W174: R1 np | X174: = | Y174: R1 np | Z174: = | AA174: R2 np | AB174: = | AC174: R1 np | AD174: = | AE174: R1 | AF174: 12ème Qualifications CD59 R1 2010-2011
A175: INTROLIGATOR | B175: Gilles | C175: 017872K | D175: LAON | E175: INTROLIGATOR Gilles | F175: CD02 | W175: N1 np | X175: = | Y175: N1 np | Z175: = | AA175: N1 np | AB175: = | AC175: N1 np | AD175: = | AE175: N1 | AF175: 7ème CD02 N1 2015 - 2016
A176: JOLY | B176: Kenan | C176: 164983E | D176: ABBEVILLE | E176: JOLY Kenan | F176: CD80 | AA176: R1 | AB176: = | AC176: R1 np | AD176: = | AE176: R1 | AF176: 16ème Qualifications CD80 R1 2018-2019
A177: JUBLOT | B177: Maxime | C177: 107058Q | D177: GRAVELINES | E177: JUBLOT Maxime | F177: CD59 | AC177: Masters | AD177: = | AE177: Masters | AF177: 1er Classement ranking national 2019-2020
A178: KAYA | B178: Tugrul | C178: 130654E | D178: GRAVELINES | E178: KAYA Tugrul | F178: CD59 | G178: N1 np | H178: = | I178: N1 np | J178: = | K178: N1 | L178: = | M178: N1 | N178: = | O178: N1 np | P178: = | Q178: N1 np | R178: = | S178: N1 np | T178: = | U178: N1 np | V178: = | W178: N1 np | X178: = | Y178: N1 np | Z178: = | AA178: N1 np | AB178: = | AC178: N1 np | AD178: = | AE178: N1 | AF178: 13ème Qualifications Ligue N1 2011-2012
A179: KERKHOF | B179: Hervé | C179: 136114E | D179: GRAVELINES | E179: KERKHOF Hervé | F179: CD59 | S179: R1 | T179: ▲ | U179: N1 | V179: = | W179: N1 | X179: = | Y179: N1 | Z179: = | AA179: R1 | AB179: = | AC179: R1 | AD179: = | AE179: R1 | AF179: 19ème Qualifications CD59 R1 2019-2020
A180: KOWALSKI | B180: Christian | C180: ? | D180: DIVION | E180: KOWALSKI Christian | F180: CD62 | K180: R1 | L180: = | M180: R1 | N180: = | O180: R1 | P180: = | Q180: R1 np | R180: = | S180: R1 np | T180: = | U180: R1 np | V180: = | W180: R1 np | X180: = | Y180: R1 np | Z180: = | AA180: R1 np | AB180: = | AC180: R1 np | AD180: = | AE180: R1 | AF180: 4ème Barrage Artois CD62 R1 2012-2013
A181: LAGATIE | B181: Clémence | C181: 127869B | D181: DUNKERQUE | E181: LAGATIE Clémence | F181: CD59 | G181: R1 | H181: = | I181: R1 np | J181: = | K181: R1 np | L181: = | M181: R1 np | N181: = | O181: R1 np | P181: = | Q181: R1 np | R181: = | S181: R1 np | T181: = | U181: R1 np | V181: = | W181: R1 np | X181: = | Y181: R1 np | Z181: = | AA181: R2 np | AB181: = | AC181: R1 np | AD181: = | AE181: R1 | AF181: 21ème Qualifications CD59 R1 2008-2009
A182: LAKBAL | B182: Johnny | C182: 017027X | D182: DIVION | E182: LAKBAL Johnny | F182: CD62 | G182: R1 | H182: = | I182: R1 | J182: ▲ | K182: N1 np | L182: = | M182: N1 np | N182: = | O182: N1 np | P182: = | Q182: N1 np | R182: = | S182: N1 np | T182: = | U182: N1 np | V182: = | W182: N1 np | X182: = | Y182: N1 np | Z182: = | AA182: N1 | AB182: = | AC182: N1 np | AD182: = | AE182: N1 | AF182: 3ème Finale CD62 N1 2018 - 2019
A183: LALOT | B183: Gérard | C183: 151719M | D183: CHAMBLY | E183: LALOT Gérard | F183: CD60 | W183: R1 | X183: = | Y183: R1 | Z183: = | AA183: R1 | AB183: = | AC183: R1 | AD183: ▲ | AE183: N1 | AF183: 4ème Qualifications CD60 R1 2019-2020
A184: LAMARQUE | B184: Yves | C184: 155214L | D184: GOUVIEUX | E184: LAMARQUE Yves | F184: CD60 | W184: R1 | X184: = | Y184: R1 | Z184: = | AA184: R1 | AB184: = | AC184: R1 | AD184: = | AE184: R1 | AF184: 5ème Qualifications CD60 R1 2019-2020
A185: LAMBEAU | B185: Pierre-Louis | C185: 020812M | D185: FRIVILLE | E185: LAMBEAU Pierre-Louis | F185: CD80 | AA185: R1 | AB185: = | AC185: R1 np | AD185: = | AE185: R1 | AF185: NC 5Q N3 3B N3 Bande ==> R1 5Q
A186: LAMBIASE | B186: Guiseppe | C186: 135143V | D186: GRAVELINES | E186: LAMBIASE Guiseppe | F186: CD59 | I186: N1 | J186: = | K186: N1 np | L186: = | M186: N1 np | N186: = | O186: N1 np | P186: = | Q186: N1 np | R186: = | S186: N1 np | T186: = | U186: N1 np | V186: = | W186: N1 np | X186: = | Y186: N1 np | Z186: = | AA186: N1 np | AB186: = | AC186: N1 np | AD186: = | AE186: N1 | AF186: 3ème finale Ligue N1 2009-2010
A187: LANDRIN | B187: Christian | C187: 129395T | D187: CHAMBLY | E187: LANDRIN Christian | F187: CD60 | W187: N1 | X187: = | Y187: N1 np | Z187: = | AA187: N1 np | AB187: = | AC187: N1 np | AD187: = | AE187: N1 | AF187: 19ème Qualifications CD60 2016 - 2017
A188: LANVIN | B188: Jean-Luc | C188: 114979H | D188: GRAVELINES | E188: LANVIN Jean-Luc | F188: CD59 | Q188: R1 | R188: = | S188: R1 np | T188: = | U188: R1 np | V188: = | W188: R1 np | X188: = | Y188: R1 np | Z188: = | AA188: R2 np | AB188: = | AC188: R1 np | AD188: = | AE188: R1 | AF188: 6ème Finale CD59 R1 2013-2014
A189: LE FRIEC | B189: Daniel | C189: 157672H | D189: CREPY EN VALOIS | E189: LE FRIEC Daniel | F189: CD60 | AA189: R1 | AB189: = | AC189: R1 | AD189: ▲ | AE189: N1 | AF189: 3ème Qualifications CD60 R1 2019-2020
A190: LE GOHEBEL | B190: Jacques | C190: 127679T | D190: VILLENEUVE D'ASCQ | E190: LE GOHEBEL Jacques | F190: CD59 | AA190: R2 | AB190: = | AC190: R1 | AD190: = | AE190: R1 | AF190: 14ème Qualifications CD59 R1 2019-2020
A191: LEBECQ | B191: Jean-Pierre | C191: 017236Y | D191: CUCQ | E191: LEBECQ Jean-Pierre | F191: CD62 | W191: R1 | X191: = | Y191: R1 | Z191: = | AA191: R1 np | AB191: = | AC191: R1 np | AD191: = | AE191: R1 | AF191: 10ème Qualifications CD62 N1 2017 - 2018
A192: LEBLANC | B192: Jean-Noël | C192: 017175P | D192: DIVION | E192: LEBLANC Jean-Noël | F192: CD62 | I192: R1 | J192: = | K192: R1 | L192: ▲ | M192: N1 | N192: = | O192: N1 np | P192: = | Q192: N1 np | R192: = | S192: N1 np | T192: = | U192: N1 | V192: = | W192: N1 np | X192: = | Y192: N1 np | Z192: = | AA192: N1 np | AB192: = | AC192: N1 np | AD192: = | AE192: N1 | AF192: 22ème Qualifications Ligue N1 2015-2016
A193: LEBORGNE | B193: Benjamin | C193: 162561X | D193: FRIVILLE | E193: LEBORGNE Benjamin | F193: CD80 | AA193: R1 | AB193: = | AC193: R1 np | AD193: = | AE193: R1 | AF193: NC
A194: LEBORGNE | B194: Corentin | C194: 160637F | D194: FRIVILLE | E194: LEBORGNE Corentin | F194: CD80 | AA194: R1 | AB194: = | AC194: R1 np | AD194: = | AE194: R1 | AF194: NC 5Q R4 Libre ==> R1 5Q
A195: LEBORGNE | B195: Hervé | C195: 162559V | D195: FRIVILLE | E195: LEBORGNE Hervé | F195: CD80 | AA195: R1 | AB195: = | AC195: R1 np | AD195: = | AE195: R1 | AF195: NC 5Q R4 Libre ==> R1 5Q
A196: LEBORGNE | B196: Léa | C196: 162560W | D196: FRIVILLE | E196: LEBORGNE Léa | F196: CD80 | AA196: R1 | AB196: = | AC196: R1 np | AD196: = | AE196: R1 | AF196: NC 5Q R4 Libre ==> R1 5Q
A197: LECLERCQ | B197: Alain | C197: 017049T | D197: GRAVELINES | E197: LECLERCQ Alain | F197: CD59 | O197: R1 | P197: = | Q197: R1 np | R197: = | S197: R1 np | T197: = | U197: R1 | V197: = | W197: N1 np | X197: = | Y197: N1 np | Z197: = | AA197: R1 np | AB197: = | AC197: N1 np | AD197: = | AE197: N1 | AF197: 23ème Qualifications Ligue N1 2015-2016
A198: LECROART | B198: Serge | C198: 016925Z | D198: VILLENEUVE D'ASCQ | E198: LECROART Serge | F198: CD59 | G198: N1 | H198: = | I198: N1 | J198: = | K198: N1 | L198: = | M198: N1 | N198: ▼ | O198: R1 | P198: = | Q198: R1 np | R198: = | S198: R1 | T198: ▲ | U198: N1 | V198: = | W198: N1 | X198: ▼ | Y198: R1 | Z198: = | AA198: R1 | AB198: = | AC198: R1 | AD198: = | AE198: R1 | AF198: 18ème Qualifications CD59 R1 2019-2020
A199: LEFEBVRE | B199: Gérard | C199: 143116M | D199: CREPY EN VALOIS | E199: LEFEBVRE Gérard | F199: CD60 | Y199: R1 | Z199: = | AA199: R1 np | AB199: = | AC199: R1 np | AD199: = | AE199: R1 | AF199: 10ème Qualifications CD60 R1 2017 - 2018
A200: LEFEBVRE | B200: Julien | C200: 150703H | D200: COURRIERES | E200: LEFEBVRE Julien | F200: CD62 | S200: R1 | T200: = | U200: R1 np | V200: = | W200: R1 np | X200: = | Y200: R1 np | Z200: = | AA200: R1 np | AB200: = | AC200: R1 np | AD200: = | AE200: R1 | AF200: Nouveau joueur 2014-2015 - Pas de résultats connus
... 144 more rows
